bitfinex-derivatives/quotes_SOLF0:USTF0_20250909
["timestamp","ask_amount","ask_price","bid_price","bid_amount"]
[1757419490028,7.19,217.35,217.3,7.13391665]
[1757419490234,118.77917351,217.36,217.3,7.13391665]
[1757419490837,7.19,217.35,217.3,7.13391665]
[1757419491134,118.77917351,217.36,217.3,7.13391665]
[1757419491638,7.19,217.35,217.3,7.13391665]
[1757419491831,118.77917351,217.36,217.3,7.13391665]
[1757419492232,7.19,217.35,217.3,7.13391665]
[1757419492427,118.77917351,217.36,217.3,7.13391665]
[1757419493036,7.19,217.35,217.3,7.13391665]
[1757419493431,118.77917351,217.36,217.3,7.13391665]
[1757419493628,7.72789474,217.46,217.3,0.03391665]
[1757419493833,7.19,217.31,217.3,0.03391665]
[1757419494037,7.19,217.31,217.24,7.1]
[1757419494239,7.19,217.31,217.28,0.03096711]
[1757419494432,1.93917351,217.32,217.28,0.03096711]
[1757419494631,7.19,217.29,217.28,0.03096711]
[1757419495537,1.93917351,217.3,217.28,0.03096711]
[1757419495941,9.12917351,217.3,217.28,0.03096711]
[1757419496744,7.19,217.3,217.28,0.03096711]
[1757419496945,7.19,217.32,217.29,7.1]
[1757419500543,1.93917351,217.35,217.29,7.1]
[1757419500748,7.19,217.34,217.28,0.03096711]
[1757419502044,7.19,217.34,217.29,3.68154851]
[1757419502247,7.19,217.34,217.28,0.03096711]
[1757419502443,7.19,217.34,217.3,7.1]
[1757419502647,7.19,217.35,217.29,7.1]
[1757419502847,1.93917351,217.34,217.28,0.03096711]
[1757419503049,1.93917351,217.34,217.29,3.68155106]
[1757419503243,7.19,217.33,217.28,0.03096711]
[1757419503954,1.93917351,217.34,217.28,0.03096711]
[1757419504255,7.19,217.33,217.28,0.03096711]
[1757419504455,1.93917351,217.34,217.28,0.03096711]
[1757419504654,7.19,217.33,217.28,0.03096711]
[1757419504956,9.12917351,217.34,217.28,0.03096711]
[1757419505458,7.19,217.33,217.29,10.78272016]
[1757419505753,7.19,217.33,217.28,0.03096711]
[1757419505947,7.19,217.33,217.3,7.1]
[1757419506154,9.12917351,217.34,217.28,0.03096711]
[1757419506352,7.19,217.33,217.29,10.78268873]
[1757419506651,7.19,217.33,217.29,7.1]
[1757419507857,7.19,217.33,217.3,10.78262784]
[1757419508060,7.19,217.33,217.3,7.1]
[1757419508547,1.93917351,217.36,217.29,7.1]
[1757419508749,1.93917351,217.36,217.3,3.68063377]
[1757419508951,7.19,217.3,217.14,6.83716231]
[1757419509149,1.93917351,217.15,216.88,13.82]
[1757419509352,1.93917351,217.15,217.05,1.93917351]
[1757419509550,1.93917351,217.15,217.07,7.1]
[1757419509750,1.93917351,217.15,217.08,0.03463941]
[1757419509956,3.73086019,217.14,217.08,0.03463941]
[1757419510164,3.73086019,217.13,217.08,0.03463941]
[1757419510357,7.96660471,217.12,217.08,0.03463941]
[1757419510556,1.02,217.19,217.08,0.03463941]
[1757419510557,1.93917351,217.1,217.08,0.03463941]
[1757419510759,7.96660471,217.09,217.08,0.03463941]
[1757419512667,4.23574452,217.09,217.08,7.13463941]
[1757419514265,4.23574452,217.09,217.08,7.59463941]
[1757419517164,4.23574452,217.09,217.08,7.88463941]
[1757419517965,7.22,217.23,217.08,7.88463941]
[1757419518161,1.93917351,217.2,217.12,1.93917351]
[1757419518363,4.26,217.19,217.12,1.93917351]
[1757419518668,6.19917351,217.2,217.14,0.03182112]
[1757419519468,4.26,217.15,217.14,0.03182112]
[1757419519769,7.83447122,217.15,217.14,0.03182112]
[1757419520170,4.26,217.15,217.14,0.03182112]
[1757419520672,1.93917351,217.17,217.14,0.03182112]
[1757419521670,4.26,217.16,217.14,0.03182112]
[1757419522472,3.03515699,217.2,217.14,0.03182112]
[1757419522680,4.26,217.18,217.14,0.03182112]
[1757419522870,4.26,217.19,217.14,0.03182112]
[1757419523072,4.26,217.17,217.14,0.03182112]
[1757419523271,4.26,217.19,217.14,0.03182112]
[1757419523576,3.57142949,217.18,217.14,0.03182112]
[1757419523772,4.26,217.19,217.14,0.03182112]
[1757419523970,3.57142949,217.18,217.14,0.03182112]
[1757419524171,4.26,217.19,217.14,0.03182112]
[1757419524472,3.57007178,217.18,217.14,0.03182112]
[1757419524677,4.26,217.19,217.14,0.03182112]
[1757419524882,4.26,217.17,217.14,0.03182112]
[1757419525071,4.26,217.19,217.14,0.03182112]
[1757419525578,7.29515699,217.2,217.14,0.03182112]
[1757419525777,4.26,217.18,217.14,0.03182112]
[1757419526072,3.03515699,217.2,217.14,0.03182112]
[1757419526272,4.26,217.18,217.14,0.03182112]
[1757419526472,3.03515699,217.2,217.14,0.03182112]
[1757419526668,4.26,217.18,217.14,0.03182112]
[1757419526874,4.26,217.19,217.14,0.03182112]
[1757419527278,4.26,217.17,217.14,0.03182112]
[1757419527479,4.26,217.19,217.14,0.03182112]
[1757419527681,3.56948389,217.18,217.14,0.03182112]
[1757419527878,4.26,217.19,217.14,0.03182112]
[1757419528073,42.98,217.23,217.14,0.03182112]
[1757419528074,4.26,217.16,217.14,0.03182112]
[1757419528679,3.03515699,217.17,217.14,0.03182112]
[1757419529976,4.01812707,217.16,217.14,0.03182112]
[1757419530281,8.27812707,217.15,217.14,0.03182112]
[1757419532585,4.01812707,217.15,217.14,0.03182112]
[1757419532881,4.01812707,217.15,217.14,7.42182112]
[1757419534474,4.01812707,217.15,217.14,7.88182112]
[1757419539386,4.01812707,217.15,217.14,7.42182112]
[1757419540381,4.26,217.23,217.14,7.42182112]
[1757419540578,3.78813711,217.22,217.14,7.42182112]
[1757419540792,3.78813711,217.21,217.17,7.39]
[1757419540987,4.26,217.29,217.18,3.03515699]
[1757419541189,7.39619248,217.28,217.19,7.39]
[1757419541389,4.26,217.29,217.19,7.39]
[1757419541390,7.39619248,217.27,217.21,0.03216929]
[1757419541591,8.04880254,217.26,217.21,7.42216929]
[1757419541889,8.04880254,217.25,217.21,7.42216929]
[1757419542088,3.78880254,217.24,217.21,7.42216929]
[1757419542384,3.78880254,217.23,217.21,7.42216929]
[1757419542588,3.78880254,217.22,217.21,7.42216929]
[1757419542785,3.78880254,217.24,217.21,7.42216929]
[1757419542990,3.78880254,217.23,217.21,7.42216929]
[1757419543292,4.26,217.25,217.21,7.42216929]
[1757419543293,3.78880254,217.22,217.21,7.42216929]
[1757419543488,3.78880254,217.24,217.21,7.42216929]
[1757419543693,3.78880254,217.23,217.21,7.42216929]
[1757419543895,3.78880254,217.22,217.21,7.42216929]
[1757419544188,3.78880254,217.22,217.21,0.03216929]
[1757419544783,3.78880254,217.22,217.21,7.59216929]
[1757419545493,3.78880254,217.27,217.21,7.59216929]
[1757419545691,8.04880254,217.26,217.21,7.59216929]
[1757419545890,8.04880254,217.25,217.21,7.59216929]
[1757419546200,3.78880254,217.24,217.22,7.56]
[1757419546390,3.78880254,217.23,217.22,7.56]
[1757419546694,3.78880254,217.27,217.21,3.03515699]
[1757419546892,3.78880254,217.26,217.21,3.03515699]
[1757419547194,4.26,217.3,217.21,3.03515699]
[1757419547195,3.78880254,217.25,217.21,3.03515699]
[1757419547390,3.78880254,217.24,217.21,3.03515699]
[1757419547593,3.78880254,217.23,217.22,7.56]
[1757419547790,3.78880254,217.23,217.2,0.030884]
[1757419547791,6.82395953,217.23,217.05,7.56]
[1757419547988,0.02916319,217.25,217.05,7.56]
[1757419547989,4.22,217.17,217.05,7.56]
[1757419548194,4.22,217.15,217.05,7.56]
[1757419548488,3.78880254,217.14,217.05,7.56]
[1757419548693,8.00880254,217.13,217.05,7.56]
[1757419548897,3.78880254,217.12,217.05,7.56]
[1757419549199,0.03414467,217.11,217.05,7.56]
[1757419549391,8.00880254,217.1,217.05,7.56]
[1757419549597,3.78880254,217.09,217.05,7.56]
[1757419551400,8.00880254,217.09,217.01,7.56]
[1757419551700,3.78880254,217.08,217.03,7.56]
[1757419551896,4.22,217.14,217.03,7.56]
[1757419552097,0.03242502,217.07,217.02,3.03515699]
[1757419552399,0.03242502,217.07,217.03,7.56]
[1757419552597,0.03242502,217.07,217.02,3.03515699]
[1757419553098,0.03242502,217.07,217.03,7.56]
[1757419553402,0.03242502,217.07,217.02,7.18165699]
[1757419553796,0.03242502,217.07,217.02,124.06165699]
[1757419554100,0.03242502,217.07,217.03,7.56]
[1757419554402,0.03242502,217.07,217.03,11.7063]
[1757419554603,0.03242502,217.07,217.06,7.56]
[1757419555001,3.83187358,217.07,217.06,7.56]
[1757419557803,6.91532282,217.23,217.06,8.02]
[1757419557804,7.64,217.23,217.06,8.02]
[1757419558006,3.61952536,217.22,217.14,7.56]
[1757419558305,3.61952536,217.21,217.14,7.56]
[1757419558607,7.64,217.23,217.14,7.56]
[1757419558799,3.6195288,217.22,217.14,7.56]
[1757419559105,3.6195288,217.21,217.15,0.03432352]
[1757419559301,7.64,217.23,217.15,0.03432352]
[1757419559504,3.61943332,217.22,217.15,0.03432352]
[1757419559705,3.61943332,217.21,217.15,0.03432352]
[1757419559905,7.64,217.23,217.15,0.03432352]
[1757419560105,3.6192909,217.22,217.15,0.03432352]
[1757419560306,3.6192909,217.21,217.15,0.03432352]
[1757419560602,7.64,217.23,217.15,0.03432352]
[1757419560801,3.61890681,217.22,217.15,0.03432352]
[1757419561105,3.61890681,217.21,217.15,0.03432352]
[1757419561307,7.64,217.23,217.15,0.03432352]
[1757419561498,3.62310423,217.22,217.15,0.03432352]
[1757419561696,11.26310423,217.21,217.15,0.03432352]
[1757419561902,3.62310423,217.2,217.15,0.03432352]
[1757419562103,3.62310423,217.19,217.15,0.03432352]
[1757419562302,7.64,217.17,217.15,0.03432352]
[1757419562506,3.03515699,217.23,217.15,0.03432352]
[1757419562701,7.64,217.21,217.15,0.03432352]
[1757419562898,7.64,217.19,217.15,0.03432352]
[1757419563198,7.64,217.17,217.15,0.03432352]
[1757419563509,7.64,217.22,217.15,0.03432352]
[1757419563709,7.64,217.2,217.15,0.03432352]
[1757419563899,7.64,217.18,217.15,0.03432352]
[1757419564104,7.64,217.16,217.15,0.03432352]
[1757419564409,11.2612277,217.16,217.15,0.03432352]
[1757419564809,11.7212277,217.16,217.15,0.03432352]
[1757419565509,11.7212277,217.16,217.06,7.56]
[1757419565706,7.64,217.14,217.06,7.56]
[1757419566304,7.64,217.23,217.08,3.03515699]
[1757419566509,7.64,217.21,217.09,7.56]
[1757419566703,3.62208166,217.2,217.09,7.56]
[1757419566905,0.03413986,217.18,217.09,10.59515699]
[1757419567106,3.62208166,217.17,217.09,10.59515699]
[1757419569412,3.62208166,217.17,217.1,7.56]
[1757419569614,3.69273001,217.16,217.1,7.56]
[1757419569813,3.69273001,217.15,217.1,7.56]
[1757419570012,0.03413986,217.18,217.1,7.56]
[1757419570013,3.69273001,217.14,217.1,7.56]
[1757419570213,0.03413986,217.18,217.1,7.56]
[1757419570410,3.69289256,217.17,217.1,7.56]
[1757419570606,3.69289256,217.16,217.1,7.56]
[1757419570810,3.69289256,217.15,217.07,4.1457]
[1757419571017,3.69289256,217.14,217.09,3.03515699]
[1757419571211,3.69289256,217.13,217.1,7.56]
[1757419571412,3.69289256,217.12,217.1,7.56]
[1757419571617,3.69238025,217.11,217.1,7.56]
[1757419572513,0.03286129,217.14,217.09,3.03515699]
[1757419572814,3.69258265,217.13,217.1,7.56]
[1757419573016,3.69258265,217.12,217.1,7.56]
[1757419573212,0.03286129,217.14,217.13,7.56]
[1757419573808,7.64,217.23,217.13,7.56]
[1757419573809,7.64,217.23,217.13,12.1645]
[1757419574008,7.31808028,217.22,217.15,10.75515699]
[1757419574316,7.31807751,217.21,217.15,7.72]
[1757419574516,14.65807751,217.2,217.15,7.72]
[1757419574813,14.65807751,217.2,217.05,3.86266025]
[1757419574814,7.34,217.18,217.05,7.72]
[1757419575011,7.31737252,217.17,217.15,0.03151435]
[1757419575214,7.31737252,217.16,217.15,7.75151435]
[1757419575410,3.69407086,217.16,217.15,7.72]
[1757419575607,3.69407086,217.21,217.14,0.02981984]
[1757419575809,7.31912616,217.2,217.14,0.02981984]
[1757419576012,14.65912616,217.19,217.14,0.02981984]
[1757419576210,14.65912616,217.18,217.14,0.02981984]
[1757419576408,3.69407086,217.17,217.14,7.74981984]
[1757419577515,3.69407086,217.17,217.14,0.02981984]
[1757419577720,3.69407086,217.17,217.14,7.74981984]
[1757419578418,3.69407086,217.17,217.14,0.02981984]
[1757419578618,3.69407086,217.16,217.15,7.72]
[1757419579033,3.69407086,217.16,217.14,0.02981984]
[1757419579220,3.69407086,217.15,217.14,7.74981984]
[1757419579419,3.69407086,217.2,217.14,7.74981984]
[1757419579618,7.34,217.18,217.14,0.02981984]
[1757419579818,7.32093648,217.17,217.14,0.02981984]
[1757419580122,3.69407086,217.16,217.09,3.03515699]
[1757419580319,3.69407086,217.16,217.13,0.0352483]
[1757419580622,3.69407086,217.15,217.14,7.72]
[1757419580823,3.69407086,217.2,217.14,7.72]
[1757419581015,7.32435299,217.19,217.15,3.03515699]
[1757419581217,3.69724445,217.18,217.15,10.75515699]
[1757419581414,3.69724445,217.17,217.16,7.72]
[1757419581619,3.69724445,217.17,217.15,3.03515699]
[1757419581816,3.69724445,217.16,217.15,3.03515699]
[1757419582223,3.69724445,217.16,217.15,10.75515699]
[1757419582422,3.69705628,217.16,217.15,9.66112384]
[1757419583819,5.15532282,217.3,217.15,9.66112384]
[1757419584021,7.34,217.28,217.22,1.94112384]
[1757419584221,3.6274379,217.27,217.22,1.94112384]
[1757419584420,1.94112384,217.3,217.22,1.94112384]
[1757419584421,7.34,217.25,217.23,0.03121141]
[1757419584725,3.6274379,217.24,217.23,0.03121141]
[1757419585725,3.6274379,217.24,217.23,7.75121141]
[1757419586126,3.6274379,217.24,217.23,0.03121141]
[1757419586627,3.6274379,217.24,217.23,7.75121141]
[1757419586830,7.34,217.31,217.23,7.75121141]
[1757419587032,10.96711553,217.3,217.25,9.66112384]
[1757419587227,3.62711553,217.29,217.25,9.66112384]
[1757419587529,3.62711553,217.28,217.25,1.94112384]
[1757419587828,311.54112384,217.35,217.25,1.94112384]
[1757419587829,7.34,217.32,217.25,1.94112384]
[1757419588030,3.62642119,217.31,217.25,1.94112384]
[1757419588227,7.34,217.29,217.25,1.94112384]
[1757419588430,3.62642119,217.28,217.25,1.94112384]
[1757419588630,3.62642119,217.27,217.25,1.94112384]
[1757419588929,7.34,217.29,217.25,1.94112384]
[1757419589131,3.62568605,217.28,217.25,1.94112384]
[1757419589330,3.62568605,217.27,217.25,1.94112384]
[1757419589531,7.34,217.29,217.25,1.94112384]
[1757419589729,3.62479267,217.28,217.27,1.94112384]
[1757419591026,3.62479267,217.28,217.27,9.66112384]
[1757419591227,156.23039115,217.34,217.27,9.66112384]
[1757419591422,122.61532282,217.4,217.32,1.94112384]
[1757419591423,3.61173151,217.33,217.32,1.94112384]
[1757419591734,3.61173151,217.33,217.27,7.72]
[1757419591933,7.34,217.36,217.32,1.94112384]
[1757419592126,7.34,217.34,217.31,1.94112384]
[1757419592328,7.34,217.39,217.31,1.94112384]
[1757419592633,3.60809027,217.38,217.31,1.94112384]
[1757419592929,3.60809027,217.37,217.31,1.94112384]
[1757419593134,3.60809027,217.36,217.31,1.94112384]
[1757419593435,7.34,217.35,217.31,1.94112384]
[1757419593634,7.34,217.39,217.31,1.94112384]
[1757419593835,7.34,217.37,217.31,1.94112384]
[1757419594035,3.60569005,217.36,217.31,1.94112384]
[1757419594335,7.34,217.39,217.31,1.94112384]
[1757419594535,3.60356348,217.38,217.31,1.94112384]
[1757419594735,3.60356348,217.37,217.31,1.94112384]
[1757419594936,7.34,217.35,217.31,1.94112384]
[1757419595830,10.98122152,217.34,217.31,1.94112384]
[1757419596028,3.64122152,217.33,217.31,1.94112384]
[1757419596229,7.34,217.37,217.3,0.03431229]
[1757419596436,7.34,217.35,217.3,0.03431229]
[1757419596732,7.34,217.33,217.3,0.03431229]
[1757419596933,1.94112384,217.38,217.3,0.03431229]
[1757419596934,10.98030291,217.32,217.3,0.03431229]
[1757419597130,3.64030291,217.31,217.3,0.03431229]
[1757419597632,10.98030291,217.31,217.3,0.03431229]
[1757419599436,3.64030291,217.31,217.3,0.03431229]
[1757419599931,7.34,217.34,217.3,0.03431229]
[1757419600133,7.34,217.32,217.3,0.03431229]
[1757419600332,10.97945788,217.31,217.3,0.03431229]
[1757419607742,3.63945788,217.31,217.3,0.03431229]
[1757419609245,11.38945788,217.31,217.3,0.03431229]
[1757419610644,3.63945788,217.31,217.3,0.03431229]
[1757419610849,7.75,217.35,217.3,0.03431229]
[1757419610850,7.75,217.35,217.3,7.22431229]
[1757419611049,3.63972799,217.34,217.3,7.22431229]
[1757419611239,3.63972799,217.33,217.3,7.22431229]
[1757419611440,49.42,217.45,217.3,7.22431229]
[1757419611441,7.75,217.44,217.3,7.22431229]
[1757419611748,7.75,217.42,217.3,7.19]
[1757419611943,7.75,217.4,217.3,7.19]
[1757419612143,7.24195905,217.39,217.35,0.03366387]
[1757419612340,49.42,217.45,217.35,0.03366387]
[1757419612341,7.75,217.37,217.35,0.03366387]
[1757419612548,14.99195905,217.36,217.35,0.03366387]
[1757419615554,7.75,217.35,217.18,7.19]
[1757419615762,7.24195905,217.34,217.18,7.19]
[1757419615960,14.99195905,217.33,217.18,7.19]
[1757419616260,7.75,217.31,217.18,7.19]
[1757419616464,7.75,217.29,217.18,11.3335]
[1757419616654,7.24195905,217.28,217.18,11.3335]
[1757419616855,3.67530611,217.27,217.18,11.3335]
[1757419617153,3.64057045,217.26,217.18,11.3335]
[1757419618360,11.39057045,217.26,217.18,7.19]
[1757419618560,7.24577687,217.25,217.18,7.19]
[1757419618760,7.24577687,217.24,217.18,7.19]
[1757419619060,14.99577687,217.23,217.18,7.19]
[1757419619257,3.64057045,217.22,217.18,7.19]
[1757419619453,3.64057045,217.22,217.13,116.58]
[1757419619652,3.64057045,217.22,217.14,4.1444]
[1757419619854,3.674138,217.22,217.18,7.19]
[1757419620053,3.64057045,217.21,217.18,7.19]
[1757419620254,3.64057045,217.21,217.14,120.7244]
[1757419620457,3.64057045,217.21,217.18,7.19]
[1757419620656,3.64057045,217.21,217.14,120.7244]
[1757419621160,3.64057045,217.21,217.18,7.19]
[1757419621355,3.64057045,217.21,217.15,4.1441]
[1757419621856,3.64057045,217.21,217.14,116.58]
[1757419622060,3.64057045,217.21,217.18,7.19]
[1757419622260,3.64057045,217.21,217.14,116.58]
[1757419622654,3.64057045,217.21,217.15,4.1441]
[1757419624360,3.64057045,217.21,217.2,1.94074984]
[1757419624753,11.39057045,217.21,217.12,7.19]
[1757419625064,3.64057045,217.2,217.17,1.94074984]
[1757419625462,0.03104082,217.19,217.17,1.94074984]
[1757419625762,3.64057045,217.18,217.17,1.94074984]
[1757419625965,3.64057045,217.18,217.17,9.13074984]
[1757419626465,3.64057045,217.18,217.17,1.94074984]
[1757419626960,7.75,217.17,217.15,1.94074984]
[1757419627159,3.64057045,217.16,217.15,1.94074984]
[1757419627765,3.64057045,217.16,217.15,9.13074984]
[1757419627966,0.03104082,217.19,217.15,1.94074984]
[1757419628157,3.64945139,217.18,217.17,9.13074984]
[1757419628760,3.64945139,217.18,217.17,1.94074984]
[1757419628958,3.64945139,217.18,217.17,9.13074984]
[1757419629155,3.64945139,217.18,217.17,7.19]
[1757419629665,3.64945139,217.18,217.16,1.94074984]
[1757419629865,3.64945139,217.17,217.16,1.94074984]
[1757419632164,0.03104082,217.19,217.16,1.94074984]
[1757419632369,11.39846496,217.18,217.16,1.94074984]
[1757419632670,7.75,217.16,217.11,1.94074984]
[1757419632863,0.03104082,217.19,217.1,1.94074984]
[1757419632864,3.64837159,217.15,217.1,1.94074984]
[1757419633063,11.39837159,217.14,217.1,9.13074984]
[1757419633263,3.64837159,217.13,217.1,9.13074984]
[1757419633458,7.75,217.14,217.1,9.13074984]
[1757419633658,3.64540821,217.13,217.1,9.13074984]
[1757419633864,7.75,217.14,217.1,9.13074984]
[1757419634063,7.75,217.14,217.11,7.07]
[1757419634268,0.03485095,217.15,217.12,9.01074984]
[1757419634468,3.64370886,217.14,217.12,9.01074984]
[1757419634769,0.03485095,217.15,217.12,9.01074984]
[1757419634963,3.64359664,217.14,217.12,9.01074984]
[1757419635165,0.03485095,217.15,217.12,1.94074984]
[1757419635359,0.03485095,217.15,217.14,1.94074984]
[1757419637263,1.94074984,217.27,217.14,1.94074984]
[1757419637564,1.94074984,217.27,217.19,1.94074984]
[1757419637565,7.24572049,217.26,217.19,1.94074984]
[1757419637864,7.24618317,217.25,217.19,1.94074984]
[1757419638070,3.6425959,217.24,217.19,1.94074984]
[1757419638269,3.6425959,217.23,217.19,1.94074984]
[1757419638462,1.94074984,217.28,217.2,1.94074984]
[1757419638667,7.24850027,217.27,217.2,1.94074984]
[1757419638865,7.24850027,217.26,217.2,1.94074984]
[1757419639067,3.64398182,217.25,217.21,0.03272415]
[1757419639261,1.94074984,217.28,217.21,0.03272415]
[1757419639262,3.64398182,217.24,217.21,0.03272415]
[1757419639563,3.64398182,217.23,217.21,0.03272415]
[1757419639767,1.94074984,217.28,217.21,0.03272415]
[1757419639966,7.24873537,217.27,217.21,0.03272415]
[1757419640162,7.24873537,217.26,217.21,0.03272415]
[1757419640370,7.46,217.24,217.21,0.03272415]
[1757419640667,11.10410001,217.23,217.21,0.03272415]
[1757419640870,1.94074984,217.28,217.21,0.03272415]
[1757419641169,14.70977463,217.27,217.21,0.03272415]
[1757419641368,7.24977463,217.26,217.21,0.03272415]
[1757419641563,7.46,217.24,217.21,0.03272415]
[1757419641867,11.10462247,217.23,217.21,0.03272415]
[1757419642062,3.64462247,217.22,217.21,0.03272415]
[1757419642669,7.46,217.22,217.21,0.03272415]
[1757419642870,11.10462247,217.22,217.21,0.03272415]
[1757419643271,3.64462247,217.22,217.21,0.03272415]
[1757419643472,3.64462247,217.24,217.21,0.03272415]
[1757419643770,3.64462247,217.23,217.21,0.03272415]
[1757419644070,3.64462247,217.22,217.21,0.03272415]
[1757419644266,3.64462247,217.25,217.21,0.03272415]
[1757419644466,3.64462247,217.24,217.21,0.03272415]
[1757419644666,3.64462247,217.23,217.21,0.03272415]
[1757419644866,7.46,217.27,217.21,0.03272415]
[1757419645066,7.46,217.25,217.21,0.03272415]
[1757419645267,11.10561215,217.24,217.21,0.03272415]
[1757419645469,3.64561215,217.23,217.21,0.03272415]
[1757419646664,11.10561215,217.23,217.21,0.03272415]
[1757419646870,3.64561215,217.22,217.21,0.03272415]
[1757419647769,3.64561215,217.23,217.21,0.03272415]
[1757419648070,3.64561215,217.22,217.21,0.03272415]
[1757419648273,3.64561215,217.23,217.21,0.03272415]
[1757419648463,3.64561215,217.22,217.21,0.03272415]
[1757419648663,3.64561215,217.23,217.21,0.03272415]
[1757419648868,5.15532282,217.37,217.22,3.03182414]
[1757419649171,14.71667374,217.36,217.22,3.03182414]
[1757419649370,7.25667374,217.35,217.22,3.03182414]
[1757419649674,7.46,217.33,217.27,0.0339288]
[1757419652375,3.64803644,217.3,217.27,0.0339288]
[1757419652572,7.46,217.35,217.27,0.0339288]
[1757419652769,7.18136673,217.34,217.27,0.0339288]
[1757419652974,3.64145701,217.33,217.27,0.0339288]
[1757419653174,3.64145701,217.32,217.27,0.0339288]
[1757419653375,3.64145701,217.31,217.27,0.0339288]
[1757419653574,7.46,217.35,217.28,3.03182414]
[1757419653873,3.64068436,217.34,217.28,3.03182414]
[1757419654076,63.58,217.41,217.28,3.03182414]
[1757419654077,11.10068436,217.33,217.28,3.03182414]
[1757419654279,3.64068436,217.32,217.28,3.03182414]
[1757419654484,7.46,217.33,217.28,3.03182414]
[1757419654669,3.64069266,217.32,217.28,3.06587134]
[1757419654871,7.46,217.4,217.28,3.06587134]
[1757419655181,7.46,217.38,217.28,3.06587134]
[1757419655376,7.46,217.36,217.28,3.06587134]
[1757419655575,3.64069164,217.35,217.28,3.06587134]
[1757419655772,3.64069164,217.34,217.28,3.06587134]
[1757419655976,7.17895415,217.33,217.31,3.03182414]
[1757419656181,7.46,217.36,217.31,3.03182414]
[1757419656383,3.64150333,217.35,217.31,3.03182414]
[1757419656683,3.64150333,217.34,217.31,3.03182414]
[1757419656881,7.46,217.43,217.31,3.03182414]
[1757419657082,7.46,217.41,217.31,3.03182414]
[1757419657279,7.46,217.39,217.31,3.03182414]
[1757419657478,3.6414996,217.38,217.34,0.03331474]
[1757419657681,11.1014996,217.37,217.34,0.03331474]
[1757419657876,3.6414996,217.36,217.34,0.03331474]
[1757419658081,3.6414996,217.35,217.34,0.03331474]
[1757419658574,11.1014996,217.35,217.34,0.03331474]
[1757419660283,3.6414996,217.35,217.34,0.03331474]
[1757419661287,11.1014996,217.35,217.34,0.03331474]
[1757419664390,7.46,217.35,217.34,0.03331474]
[1757419668092,11.09257148,217.35,217.34,0.03331474]
[1757419671798,11.09365077,217.35,217.34,0.03331474]
[1757419673693,7.46,217.35,217.34,0.03331474]
[1757419673900,7.13,217.45,217.34,0.03331474]
[1757419674100,7.13,217.43,217.34,0.03331474]
[1757419674398,7.13,217.41,217.34,0.03331474]
[1757419674599,3.63460964,217.4,217.34,0.03331474]
[1757419674794,3.63460964,217.39,217.34,0.03331474]
[1757419675000,7.13,217.42,217.34,7.32331474]
[1757419675196,3.63396452,217.41,217.34,7.32331474]
[1757419675399,3.63396452,217.4,217.34,7.32331474]
[1757419675598,7.13,217.42,217.34,7.32331474]
[1757419675794,3.63402012,217.41,217.34,7.32331474]
[1757419675991,3.63402012,217.4,217.34,11.46381474]
[1757419676195,7.13,217.42,217.34,7.32331474]
[1757419676395,3.63368641,217.41,217.34,7.32331474]
[1757419676596,3.63368641,217.4,217.34,7.32331474]
[1757419676797,7.13,217.38,217.34,0.03331474]
[1757419676997,7.13,217.45,217.34,0.03331474]
[1757419677198,7.13,217.43,217.34,0.03331474]
[1757419677397,7.13,217.41,217.34,0.03331474]
[1757419677599,3.63343844,217.4,217.34,0.03331474]
[1757419677796,10.76343844,217.39,217.35,7.29]
[1757419677998,3.63343844,217.38,217.35,7.29]
[1757419678303,3.63343844,217.37,217.35,7.29]
[1757419678502,7.13,217.45,217.35,7.29]
[1757419678705,7.13,217.43,217.35,7.29]
[1757419679001,7.13,217.41,217.35,7.29]
[1757419679305,7.13,217.39,217.35,7.29]
[1757419679602,3.63379417,217.38,217.35,7.29]
[1757419682902,3.63379417,217.38,217.34,0.03331474]
[1757419683101,3.63379417,217.38,217.34,4.17381474]
[1757419683306,3.63379417,217.38,217.37,7.29]
[1757419687607,7.13,217.46,217.37,7.75]
[1757419687809,3.53845227,217.45,217.44,7.29]
[1757419688109,7.13,217.55,217.44,7.29]
[1757419688314,7.13,217.55,217.46,3.03182414]
[1757419688813,7.13,217.55,217.48,0.03051255]
[1757419690821,7.13,217.55,217.49,3.03182414]
[1757419691710,7.13,217.55,217.48,0.03051255]
[1757419694215,7.13,217.55,217.48,7.14051255]